Cogmind - Beta 14 @@@ ROGUE MODE // 2024.10.09 @ 01:30:07 Player: catpottery Result: Destroyed by as-07906 with Assembled Rifle Performance ------------- Evolutions (0) 0 Regions Visited (2) 400 Robots Destroyed (15) 75 Value Destroyed (185) 185 Prototype IDs (0) 0 Alien Tech Used (0) 0 Bonus (0) 0 TOTAL SCORE: 660 Bonus ------- None Cogmind --------- Core Integrity 0/250 Matter 274/300 Energy 100/100 System Corruption 0% Temperature Cool (0) Movement Core (200) Ox3 Location -10/Mines Parts ------- > --- POWER (1) -------- (None) > --- PROPULSION (2) --- (None) > --- UTILITY (2) ------ Heat Sink Medium Storage Unit > --- WEAPON (2) ------- (None) > --- INVENTORY (10) --- Ion Engine Aluminum Leg Sensor Array Weapon Shielding Light Assault Rifle Light Assault Rifle Datajack Peak State ------------ > --- POWER ------------ Ion Engine > --- PROPULSION ------- Aluminum Leg Aluminum Leg > --- UTILITY ---------- Heat Sink Medium Storage Unit > --- WEAPON ----------- Assault Rifle Makeshift Shrapnel Gun > --- INVENTORY -------- Aluminum Leg Aluminum Leg Aluminum Leg Sensor Array Weapon Shielding Assault Rifle Light Assault Rifle Light Assault Rifle Datajack Mining Claw [Rating: 11] Favorites ----------- Power Ion Engine Engine Ion Engine Propulsion Aluminum Leg Treads Light Treads Leg Aluminum Leg Utility Heat Sink Device Heat Sink Storage Small Storage Unit Weapon Light Assault Rifle Ballistic Gun Light Assault Rifle Build | -11 -10 -10 ------- Run | Yrd Mat Min Slots Evolved . | . . . Power . | . . . Propulsion . | . . . Utility . | . . . Weapon . | . . . Parts Attached 17 | 8 5 4 Power 1 | 1 . . Engine 1 | 1 . . Core . | . . . Reactor . | . . . Propulsion 6 | 4 . 2 Treads 2 | 2 . . Leg 4 | 2 . 2 Wheel . | . . . Hover . | . . . Flight . | . . . Utility 4 | 1 3 . Device 1 | . 1 . Storage 3 | 1 2 . Processor . | . . . Hackware . | . . . Protection . | . . . Artifact . | . . . Weapon 6 | 2 2 2 Energy Gun . | . . . Energy Cannon . | . . . Ballistic Gun 6 | 2 2 2 Ballistic Cannon . | . . . Launcher . | . . . Special Weapon . | . . . Impact Weapon . | . . . Slashing Weapon . | . . . Piercing Weapon . | . . . Special Melee Weapon . | . . . Unidentified Prototypes . | . . . Parts Lost 8 | . . 8 Power 1 | . . 1 Propulsion 4 | . . 4 Utility . | . . . Weapon 3 | . . 3 Highest Loss Streak 8 | . . 8 To Critical Strikes . | . . . Average Slot Usage (%) 93 | . 92 96 Engine 13 | . 14 12 Leg 28 | . 28 28 Device 8 | . 7 14 Storage 13 | . 13 14 Ballistic Gun 27 | . 28 25 Peak Build Rating 11 | 6 8 11 Average Rating 6 | 3 6 8 On Entrance 4 | . 6 8 Naked Turns . | . . . Heaviest Build 88 | 13 88 20 Greatest Support 20 | 20 20 20 Greatest Overweight (x) 4 | 1 4 3 Average Overweight (x) . | . . . Largest Inventory Capacity 25 | 8 25 10 Average Capacity 8 | 6 9 10 Most Carried 10 | 5 10 10 Average Carried 5 | 1 6 9 Final Capacity 10 | 8 10 10 Final Carried 10 | . 10 7 Class Distribution -------------------- 100% | Mutant Dominant Class ---------------- Mutant | -10/Materials Mutant | -10/Mines Resources | -11 -10 -10 ----------- Run | Yrd Mat Min Matter Collected 534 | 195 271 68 Remotely . | . . . Salvage Created 569 | . 479 90 Parts 35 | . 29 6 Haulers Intercepted 1 | . 1 . Recyclers Shooed 3 | . 2 1 Parts Field Recycled . | . . . Retrieved Matter . | . . . Parts Self-Destructed . | . . . Prevented . | . . . Kills | -11 -10 -10 ------- Run | Yrd Mat Min Combat Hostiles Destroyed 6 | . 6 . Guns 6 | . 6 . Classes Destroyed 7 | . 6 1 Worker 2 | . 1 1 Builder 1 | . . 1 Tunneler 1 | . 1 . Hauler 1 | . 1 . Recycler 4 | . 3 1 Swarmer 3 | . 3 . Grunt 3 | . 3 . Best Kill Streak 3 | . 3 2 Combat Bots Only 3 | . 3 . Max Kills in Single Turn 1 | . 1 1 Gunslinging . | . . . Exploded . | . . . Melee . | . . . Uniques/NPCs Destroyed . | . . . Combat | -11 -10 -10 -------- Run | Yrd Mat Min Hostile Shots Fired 78 | . 36 42 Missed 19 | . 7 12 Damage Taken 1197 | . 317 880 Core 258 | . 82 176 Absorbed by Shields . | . . . Core Remaining (%) 100 | 100 . . Volleys Fired 66 | . 55 11 Largest 2 | . 2 2 Hottest 44 | . 40 44 Shots Fired 128 | . 110 18 Gun 128 | . 110 18 Cannon . | . . . Launcher . | . . . Special . | . . . Kinetic 128 | . 110 18 Thermal . | . . . Explosive . | . . . Electromagnetic . | . . . Robot Hit Streak 7 | . 7 6 Robot Miss Streak 3 | . 3 1 Penetration Max . | . . . Secondary Targets 1 | . 1 . Max Gunslinging Chain 1 | . 1 . Shots Hit Robots 72 | . 63 9 Core Hits 30 | . 25 5 Critical Kills 1 | . 1 . Critical Parts Destroyed 2 | . 2 . Critical Strikes 3 | . 3 . Destroy 3 | . 3 . Melee Attacks . | . . . Impact . | . . . Slashing . | . . . Piercing . | . . . Sneak Attacks . | . . . Combat Hostiles . | . . . Follow-up Attacks . | . . . Damage Inflicted 691 | . 544 147 Guns 691 | . 544 147 Cannons . | . . . Explosions . | . . . Melee . | . . . Ramming . | . . . Kinetic 691 | . 544 147 Thermal . | . . . Explosive . | . . . Electromagnetic . | . . . Impact . | . . . Slashing . | . . . Piercing . | . . . Highest Corruption . | . . . Average Corruption . | . . . Corruption Purged . | . . . Corruption Blocked . | . . . Overload Shots . | . . . Overflow Damage . | . . . Projectiles . | . . . Explosions . | . . . Melee . | . . . Knockbacks . | . . . Impact . | . . . Kinetic . | . . . Secondary . | . . . Self-Inflicted Damage . | . . . Shots . | . . . Rammed . | . . . Targets Rammed . | . . . Kicked . | . . . Crushed . | . . . Highest Temperature 39 | . 39 4 Average Temperature 11 | . 11 4 Received Heat Transfer 173 | . 153 20 Siege Activations . | . . . Robots Corrupted . | . . . Combat Hostiles . | . . . Parts Fried . | . . . Impact Corruptions . | . . . Robots Melted . | . . . Combat Hostiles . | . . . Parts Melted . | . . . Heat Transferred . | . . . Parts Sabotaged . | . . . Parts Stolen . | . . . Parts Stripped . | . . . Power Chain Reactions . | . . . Alert | -11 -10 -10 ------- Run | Yrd Mat Min Peak Influence 182 | . 182 22 Initial 7 | . . 7 Average 62 | . 89 13 Maximum Alert Level . | . . . Low Security (%) 100 | 100 100 100 Level 1 . | . . . Level 2 . | . . . Level 3 . | . . . Level 4 . | . . . Level 5 . | . . . High Security . | . . . Max Security . | . . . Squads Dispatched . | . . . Investigation . | . . . Extermination . | . . . Reinforcement . | . . . Assault . | . . . Garrison . | . . . Intercept . | . . . Searches Triggered . | . . . Construction Impeded . | . . . Haulers Reinforced . | . . . Active Scanning Responses . | . . . Cargo Convoy Interrupts . | . . . Stealth | -11 -10 -10 --------- Run | Yrd Mat Min Distress Signals 2 | . 2 . Communications Jammed . | . . . Distress Signals . | . . . Times Spotted 21 | . 12 9 Peak Tracking Total 9 | . 4 9 Tactical Retreats 1 | . 1 . Traps | -11 -10 -10 ------- Run | Yrd Mat Min Traps Triggered . | . . . Indirectly . | . . . Trap Hack Attempts . | . . . Triggered . | . . . Disarmed . | . . . Reprogrammed . | . . . Reused . | . . . Traps Extracted . | . . . Installed . | . . . Triggered . | . . . Machines | -11 -10 -10 ---------- Run | Yrd Mat Min Machines Disabled 1 | . 1 . Max in Single Turn 1 | . 1 . Machines Repaired . | . . . Machines Dismantled . | . . . Machines Sabotaged . | . . . Overloaded Fab Kills . | . . . Hacking | -11 -10 -10 --------- Run | Yrd Mat Min Machines Accessed . | . . . Terminals . | . . . Fabricators . | . . . Repair Stations . | . . . Recycling Units . | . . . Scanalyzers . | . . . Garrison Access . | . . . Total Hacks . | . . . Successful . | . . . Failed . | . . . Catastrophic . | . . . Database Lockouts . | . . . Manual . | . . . Terminals . | . . . Fabricators . | . . . Repair Stations . | . . . Recycling Units . | . . . Scanalyzers . | . . . Garrison Access . | . . . Terminal Hacks . | . . . Fabricator Hacks . | . . . Repair Station Hacks . | . . . Recycling Unit Hacks . | . . . Scanalyzer . | . . . Garrison Access Hacks . | . . . Unauthorized Hacks . | . . . Terminals . | . . . Fabricators . | . . . Repair Stations . | . . . Recycling Units . | . . . Scanalyzers . | . . . Garrison Access . | . . . Data Cores Recovered . | . . . Used . | . . . Hacking Detections . | . . . Full Trace Events . | . . . Feedback Events . | . . . Feedback Blocked . | . . . Robot Schematics Acquired . | . . . Robots Built . | . . . Authchips . | . . . Time . | . . . Total Robot Build Rating . | . . . Part Schematics Acquired . | . . . Parts Built . | . . . Authchips . | . . . Time . | . . . Total Part Build Rating . | . . . Parts Repaired . | . . . Time . | . . . Parts Recycled . | . . . Recycled Matter . | . . . Retrieved Matter . | . . . Retrieved Components . | . . . Parts Scanalyzed . | . . . Part Schematics Acquired . | . . . Parts Damaged . | . . . Bothacking | -11 -10 -10 ------------ Run | Yrd Mat Min Used RIF Installer . | . . . Robots Hacked . | . . . Non-combat . | . . . Combat . | . . . Robot Hacks Applied . | . . . Relay Couplers Released . | . . . Fabnet Peak Effective % . | . . . Robots Rewired . | . . . Allies Hacked . | . . . Hacks Repelled . | . . . Allies | -11 -10 -10 -------- Run | Yrd Mat Min Total Allies 3 | . . 3 Largest Group 3 | . . 3 Highest-Rated Group 40 | . . 40 Highest-Rated Ally 16 | . . 16 Total Orders . | . . . Ally Attacks 3 | . . 3 Total Damage 31 | . . 31 Kills . | . . . Allies Corrupted . | . . . Allies Melted . | . . . Intel | -11 -10 -10 ------- Run | Yrd Mat Min Robot Analysis Total . | . . . Derelict Logs Recovered 1 | . . 1 Drone Launches . | . . . Drone Recoveries . | . . . Exploration | -11 -10 -10 ------------- Run | Yrd Mat Min Turns Passed 737 | 120 493 124 Spaces Moved 425 | 106 247 72 Core 53 | 51 . 2 Treads . | . . . Legs 372 | 55 247 70 Wheels . | . . . Hover . | . . . Flight . | . . . Fastest Speed 50 | 50 120 120 Average Speed 113 | 88 122 122 Slowest Speed 400 | 190 400 200 Overloaded Moves . | . . . Propulsion Burnouts . | . . . Robots Hopped . | . . . Cave-ins Triggered . | . . . Exploration Rate (%) 19 | 5 30 22 Regions Visited 2 Branch Regions 1 Pre-discovered Areas 1 | . . 1 Known Exits Taken . | . . . Unknown Exits Taken 2 | 1 1 . Scrap Searched . | . . . Spaces Dug . | . . . Terrain Destroyed . | . . . Melee . | . . . Projectile . | . . . AOE . | . . . Terrain Rammed . | . . . Walls Destroyed . | . . . Machines Disabled . | . . . Actions | -11 -10 -10 --------- Run | Yrd Mat Min Total 574 | 135 348 91 Wait 19 | 8 11 . Move 423 | 105 246 72 Hop . | . . . Pick Up 33 | 9 22 2 Fast Attach . | . . . Attach 16 | 8 5 3 Detach 3 | 2 1 . Swap 1 | . . 1 Drop 13 | 3 8 2 Fire 66 | . 55 11 Melee . | . . . Ram . | . . . Kick . | . . . Crush . | . . . Escape Stasis . | . . . Rewire . | . . . Trap . | . . . Miscellaneous . | . . . Route ------- -11/Scrapyard -10/Materials -10/Mines (discovered 1 exit: [*Mat]) History --------- Turn | Location | Event 2 | -11/Scrapyard | Met Revision 17 3 | -11/Scrapyard | Discovered new exit (range 15) 121 | -11/Scrapyard | Entered Materials 310 | -10/Materials | Build established: Mutant 603 | -10/Materials | Discovered new exit (range 6) 614 | -10/Materials | Entered Mines 628 | -10/Mines | Learned location of Storage (-8) 649 | -10/Mines | Discovered new exit (range 8) 659 | -10/Mines | Assisted by bots powering up and referring to "LRC-V3" 676 | -10/Mines | A weapon hastily lodged in a ceiling crevice suddenly fell to the ground 696 | -10/Mines | Assembled infested the area 717 | -10/Mines | Core integrity fell below 50% 731 | -10/Mines | Core integrity fell below 20% 738 | -10/Mines | Destroyed by as-07906 with Assembled Rifle Last Messages --------------- 00718_ as-35344 destroyed. 00720_ Aluminum Leg destroyed. 00720_ Trooper 1a destroyed. 00722_ The unstable cave ceiling collapses. 00722_ Ion Engine destroyed. 00724_ D-53 Grenadier destroyed. 00724_ Assault Rifle destroyed. 00726_ Aluminum Leg destroyed. 00726_ as-32871 destroyed. 00726_ as-99241 destroyed. 00727_ U-05 Engineer lays Concrete. 00728_ U-05 Engineer builds a Wall. 00730_ Destroyed Shock Absorption System. 00732_ U-05 Engineer lays Concrete. 00733_ U-05 Engineer builds a Wall. 00734_ The unstable cave ceiling collapses. 00734_ Assault Rifle destroyed. 00734_ Aluminum Leg destroyed. 00736_ The unstable cave ceiling collapses. 00736_ U-05 Engineer destroyed. Map ----- +----------------------------------------------------+ | | | | | | | | | | | | | | | ?????????????????????????????????????????????????? | | #####??????#####?????????????????????????????????? | | #?????# #?????????????????????????????????? | | ???### ###???????????????????????????????? | | ???# #???????????????????????????????? | | #???# ########????????????????????????? | | # #???# < ###??????????????????????? | | # ##??# # ## ##?????????????????????? | | ##?# # ## #?????????????????????? | | ########### ## #?????????????????????? | | #????????#=### ##?????????????????????? | | # ##???????# #?## ##??????????????????????? | | # ##??????#*#??# ##?????????????##????????? | | # ######## #??# ##########???? ###??????? | | #??# # # #### ??????? | | ## ######??#! ????????? | | # ## ## #??????## a""" ?????????? | | #### ### ## #??????# """ #????????? | | ???#####?# ## #??????# %@d a """ #????????? | | ?????????# #??????# #????????? | | ?????????#### #??????## #????????? | | ????????????# #???????# # ##????????? | | ???????????? ???????# #!= ##? ##?????????? | | ???????????? ???????####%#######????#??????????? | | ???????????? ??????????#*#?????????????????????? | | ???????????? ??????????#=#?????????????????????? | | ???????????? ??????????# #?????????????????????? | | ???????????? ?????????? #?????????????????????? | | ???????????? ??????????###?????????????????????? | | ???????????? ??????????????????????????????????? | | ?????????????????????????????????????????????????? | | ?????????????????????????????????????????????????? | | ?????????????????????????????????????????????????? | | ?????????????????????????????????????????????????? | | ?????????????????????????????????????????????????? | | ?????????????????????????????????????????????????? | | ?????????????????????????????????????????????????? | | ?????????????????????????????????????????????????? | | ?????????????????????????????????????????????????? | | ?????????????????????????????????????????????????? | | ?????????????????????????????????????????????????? | | ?????????????????????????????????????????????????? | | ?????????????????????????????????????????????????? | +----------------------------------------------------+ Best States ------------- Heat Dissipation 35 Energy Generation 10 Energy Capacity 250 Matter Stores 300 Matter Capacity 300 Sight Range 16 Terrain Scan Density 10 Evasion (%) 55 Item Schematics ----------------- None Robot Schematics ------------------ None Fabricated ------------ Nothing Alien Tech Used ----------------- None Achievements -------------- None Challenges ------------ None Game ------ Seed TimingHypervelocityMultitool Manual? 0 Play Time 00:08:15 Cumulative 13.9 hours Start 2024.10.09 @ 01:23:29 End 2024.10.09 @ 01:30:07 Sessions 1 Manual Loads 0 Difficulty Rogue Special Mode None Game No. 38 Rogue 38 Adventurer 0 Explorer 0 Win Type - Total 0 Types 0/0/0/0/0/0/0/0/0 Lore% 11 Gallery% 23 Achievement% 23 Wizard Run 0 Options --------- Layout 1 ASCII 0 Keyboard 1 Movement Numpad Keybinds 0 Fullscreen 1 Font 32/SmallcapsGlow Map View 50x35 Zoom Use 0% Tactical HUD 1 Map Filters NONE Filters NONE Steam 1 RUN: 7d955268-5719-47b0-b78b-ab16a9064e8c